bitfinex/quotes_SOLUSD_20260203
["timestamp","ask_amount","ask_price","bid_price","bid_amount"]
[1770151355049,7.81869145,101.36,101.31,7.81869145]
[1770151355233,7.81869145,101.34,101.29,9.41038718]
[1770151355547,7.81869145,101.34,101.3,9.41038718]
[1770151355722,1.65159187,101.35,101.3,9.41038718]
[1770151355723,9.47028332,101.35,101.3,9.41038718]
[1770151355928,7.81869145,101.35,101.31,1.59169573]
[1770151356147,7.81869145,101.33,101.29,9.41038718]
[1770151356443,9.47028332,101.33,101.28,7.81869145]
[1770151356645,20.71636108,101.37,101.27,1.59169573]
[1770151356646,9.47028332,101.31,101.27,1.59169573]
[1770151357033,1.65159187,101.3,101.25,1.59169573]
[1770151357334,7.81869145,101.27,101.23,1.59169573]
[1770151357651,7.81869145,101.26,101.21,9.41038718]
[1770151357826,1.65159187,101.28,101.22,1.59169573]
[1770151358026,7.81869145,101.27,101.22,9.41038718]
[1770151358227,7.81869145,101.26,101.22,1.59169573]
[1770151359147,7.81869145,101.28,101.23,9.41038718]
[1770151359348,7.81869145,101.29,101.25,9.41038718]
[1770151359534,9.47028332,101.3,101.25,9.41038718]
[1770151359729,7.81869145,101.29,101.25,7.81869145]
[1770151359946,5.92219767,101.32,101.23,36.87038718]
[1770151359947,7.81869145,101.27,101.23,36.87038718]
[1770151360127,1.65159187,101.28,101.24,7.81869145]
[1770151360324,7.81869145,101.29,101.25,7.81869145]
[1770151360527,7.81869145,101.29,101.24,1.59169573]
[1770151360528,9.47028332,101.29,101.24,1.59169573]
[1770151360754,7.81869145,101.3,101.26,7.81869145]
[1770151360933,7.81869145,101.3,101.25,1.59169573]
[1770151360934,9.47028332,101.3,101.25,1.59169573]
[1770151361141,9.47028332,101.3,101.25,9.41038718]
[1770151361455,5.92146866,101.33,101.27,7.81869145]
[1770151361456,1.65159187,101.31,101.27,7.81869145]
[1770151361639,7.81869145,101.29,101.24,1.59169573]
[1770151361824,7.81869145,101.29,101.25,1.59169573]
[1770151362230,9.47028332,101.3,101.26,7.81869145]
[1770151362450,9.47028332,101.3,101.25,9.41038718]
[1770151362850,1.65159187,101.32,101.27,1.59169573]
[1770151363064,1.65159187,101.33,101.27,1.59169573]
[1770151363232,1.65159187,101.33,101.29,7.81869145]
[1770151363434,9.47028332,101.33,101.28,7.81869145]
[1770151363632,1.65159187,101.33,101.29,7.81869145]
[1770151364050,14.79144068,101.41,101.32,9.41038718]
[1770151364364,20.70801695,101.41,101.34,7.81869145]
[1770151364561,7.81869145,101.39,101.34,7.81869145]
[1770151365558,7.81869145,101.39,101.34,9.41038718]
[1770151365853,7.81869145,101.37,101.32,9.41038718]
[1770151366061,7.81869145,101.37,101.33,7.81869145]
[1770151366236,7.81869145,101.38,101.33,7.81869145]
[1770151366553,7.81869145,101.38,101.33,9.41038718]
[1770151367852,9.1448365,101.38,101.33,9.41038718]
[1770151368253,9.1448365,101.38,101.33,7.81869145]
[1770151368254,15.06336818,101.38,101.33,7.81869145]
[1770151368451,7.81869145,101.37,101.32,7.81869145]
[1770151368759,7.81869145,101.36,101.32,1.59169573]
[1770151369339,9.15082118,101.4,101.35,7.81869145]
[1770151369660,9.1544638,101.4,101.35,9.41038718]
[1770151369858,9.1544638,101.39,101.34,7.81869145]
[1770151370546,9.1544638,101.39,101.34,9.59681812]
[1770151370755,1.33577235,101.39,101.34,9.59681812]
[1770151370945,7.81869145,101.4,101.36,7.81869145]
[1770151371143,9.16162399,101.41,101.36,7.81869145]
[1770151371340,174.14020154,101.44,101.39,9.59681812]
[1770151371341,7.81869145,101.44,101.39,9.59681812]
[1770151371642,1.34293254,101.45,101.42,7.81869145]
[1770151371841,1.34293254,101.45,101.4,1.77812667]
[1770151372056,1.34293254,101.45,101.41,7.81869145]
[1770151372237,9.16514252,101.47,101.42,7.81869145]
[1770151372440,7.81869145,101.46,101.41,9.59681812]
[1770151372640,7.81869145,101.45,101.41,1.77812667]
[1770151372957,1.34992919,101.41,101.33,1.77812667]
[1770151373160,7.81869145,101.4,101.36,1.77812667]
[1770151373365,7.81869145,101.37,101.32,1.77812667]
[1770151373549,7.81869145,101.38,101.33,9.59681812]
[1770151373882,7.81869145,101.39,101.35,9.59681812]
[1770151374240,7.81869145,101.4,101.35,9.59681812]
[1770151374554,7.81869145,101.4,101.35,1.77812667]
[1770151374756,7.81869145,101.4,101.35,9.59681812]
[1770151375067,7.81869145,101.39,101.35,9.59681812]
[1770151375362,7.27008819,101.41,101.35,9.59681812]
[1770151375363,7.81869145,101.4,101.35,9.59681812]
[1770151375564,9.18213818,101.39,101.32,1.71053159]
[1770151375742,1.36344673,101.41,101.36,9.52922304]
[1770151376056,7.81869145,101.39,101.34,9.52922304]
[1770151376262,7.81869145,101.39,101.35,1.71053159]
[1770151376464,9.18213818,101.4,101.35,9.52922304]
[1770151377370,7.81869145,101.36,101.33,1.71053159]
[1770151377542,7.81869145,101.37,101.33,9.52922304]
[1770151377966,7.81869145,101.36,101.33,1.71053159]
[1770151378539,7.81869145,101.37,101.33,1.71053159]
[1770151378940,7.81869145,101.35,101.31,1.71053159]
[1770151379446,7.81869145,101.36,101.32,1.71053159]
[1770151379847,7.81869145,101.35,101.32,1.71053159]
[1770151380053,7.81869145,101.36,101.32,1.71053159]
[1770151380447,7.78972262,101.36,101.32,1.71053159]
[1770151380664,7.78972262,101.35,101.32,1.71053159]
[1770151380860,1.3794885,101.37,101.32,1.71053159]
[1770151381063,9.16921112,101.39,101.32,1.71053159]
[1770151381373,7.78972262,101.44,101.31,1.71053159]
[1770151381374,7.78972262,101.35,101.31,1.71053159]
[1770151381570,7.78972262,101.33,101.29,1.71053159]
[1770151381758,7.78972262,101.32,101.29,1.71053159]
[1770151381961,7.78972262,101.31,101.29,1.71053159]
[1770151382354,1.38258715,101.34,101.29,1.71053159]
[1770151382355,7.78972262,101.32,101.29,1.71053159]
[1770151382672,7.78972262,101.3,101.27,37.16071983]
[1770151383171,7.78972262,101.3,101.25,7.78972262]
[1770151383172,7.78972262,101.28,101.25,1.71053159]
[1770151383373,7.78972262,101.26,101.23,1.71053159]
[1770151383675,7.78972262,101.28,101.24,1.71053159]
[1770151384957,7.78972262,101.27,101.24,1.71053159]
[1770151385151,1.38867809,101.29,101.17,24.70952575]
[1770151385152,7.78972262,101.26,101.17,24.70952575]
[1770151385362,7.78972262,101.23,101.2,1.71053159]
[1770151385871,7.78972262,101.24,101.2,1.71053159]
[1770151386170,7.78972262,101.26,101.22,1.71053159]
[1770151386373,7.78972262,101.28,101.23,9.50025421]
[1770151386551,7.78972262,101.27,101.21,1.71053159]
[1770151386755,7.78972262,101.25,101.21,1.71053159]
[1770151387361,7.78972262,101.24,101.21,1.71053159]
[1770151387556,7.78972262,101.23,101.21,1.71053159]
[1770151387777,7.78972262,101.23,101.19,1.71053159]
[1770151388759,7.78972262,101.23,101.19,9.50025421]
[1770151389072,7.78972262,101.23,101.2,1.71053159]
[1770151389868,7.32617354,101.26,101.2,1.71053159]
[1770151390066,7.78972262,101.25,101.21,1.71053159]
[1770151390450,7.78972262,101.26,101.22,1.71053159]
[1770151390655,7.78972262,101.26,101.15,65.50196613]
[1770151390656,7.78972262,101.24,101.2,9.50025421]
[1770151390869,7.78972262,101.24,101.21,1.71053159]
[1770151391056,1.4089215,101.28,101.22,1.71053159]
[1770151391379,7.78972262,101.26,101.21,1.71053159]
[1770151391576,7.78972262,101.26,101.22,1.71053159]
[1770151391881,7.78972262,101.27,101.23,1.71053159]
[1770151392061,1.41168208,101.28,101.23,1.71053159]
[1770151392278,7.78972262,101.26,101.23,1.71053159]
[1770151392457,7.78972262,101.26,101.15,70.86282801]
[1770151392458,7.78972262,101.24,101.2,1.71053159]
[1770151392778,7.78972262,101.27,101.22,9.50025421]
[1770151393168,7.78972262,101.26,101.22,9.50025421]
[1770151393574,7.78972262,101.27,101.22,9.50025421]
[1770151393758,7.78972262,101.27,101.23,9.50025421]
[1770151393959,1.41441096,101.28,101.23,9.50025421]
[1770151394262,7.78972262,101.26,101.22,1.71053159]
[1770151395879,7.78972262,101.25,101.2,7.78972262]
[1770151396183,7.78972262,101.24,101.21,1.71053159]
[1770151396565,7.78972262,101.25,101.21,1.71053159]
[1770151397069,7.78972262,101.22,101.18,1.71053159]
[1770151397879,20.74085716,101.25,101.16,1.71053159]
[1770151397880,7.78972262,101.19,101.16,1.71053159]
[1770151398061,1.42759232,101.24,101.17,1.71053159]
[1770151398388,7.78972262,101.21,101.17,1.71053159]
[1770151399269,7.78972262,101.23,101.19,1.71053159]
[1770151399470,9.22237796,101.24,101.19,9.50025421]
[1770151399680,9.22237796,101.24,101.2,7.78972262]
[1770151399877,1.43265534,101.26,101.21,9.50025421]
[1770151400070,9.22237796,101.26,101.21,9.50025421]
[1770151400570,7.78972262,101.24,101.21,1.71053159]
[1770151401290,7.78972262,101.23,101.19,1.68682497]
[1770151401474,4.27527085,101.28,101.2,1.68682497]
[1770151401666,4.27527085,101.28,101.22,9.47654759]
[1770151401667,9.2297565,101.27,101.22,9.47654759]
[1770151401973,7.78972262,101.26,101.22,9.47654759]
[1770151402364,7.78972262,101.28,101.23,9.47654759]
[1770151402564,7.78972262,101.28,101.24,1.68682497]
[1770151403183,7.78972262,101.27,101.24,1.68682497]
[1770151403386,7.78972262,101.26,101.22,9.47654759]
[1770151403969,7.78972262,101.23,101.2,1.68682497]
[1770151404179,7.78972262,101.24,101.2,1.68682497]
[1770151404583,7.78972262,101.23,101.2,1.68682497]
[1770151406389,7.37099863,101.25,101.2,1.68682497]
[1770151406589,7.78972262,101.26,101.21,9.47654759]
[1770151406812,1.45177714,101.25,101.17,1.84810158]
[1770151406974,13.71526564,101.26,101.18,1.84810158]
[1770151406975,7.78972262,101.22,101.18,1.84810158]
[1770151407995,7.78972262,101.2,101.17,1.84810158]
[1770151408584,7.78972262,101.19,101.15,1.84810158]
[1770151409202,7.78972262,101.21,101.17,1.84810158]
[1770151409880,14.81663131,101.24,101.18,1.84810158]
[1770151409881,7.78972262,101.22,101.18,1.84810158]
[1770151410104,7.78972262,101.23,101.18,9.6378242]
[1770151410598,7.78972262,101.22,101.18,1.84810158]
[1770151411195,7.78972262,101.22,101.19,1.84810158]
[1770151411580,7.78972262,101.21,101.17,7.78972262]
[1770151411779,7.78972262,101.22,101.18,1.84810158]
[1770151412193,7.78972262,101.23,101.19,1.84810158]
[1770151412903,7.78972262,101.26,101.22,1.84810158]
[1770151413084,7.78972262,101.27,101.22,9.6378242]
[1770151414190,7.78972262,101.25,101.2,9.6378242]
[1770151414494,7.78972262,101.24,101.2,1.84810158]
[1770151414694,7.78972262,101.25,101.21,1.84810158]
[1770151415208,7.78972262,101.23,101.19,1.84810158]
[1770151415830,7.78972262,101.24,101.2,1.84810158]
[1770151416314,7.78972262,101.23,101.2,1.84810158]
[1770151416610,7.78972262,101.26,101.22,9.6378242]
[1770151416787,7.78972262,101.27,101.22,9.6378242]
[1770151417717,25.88,101.29,101.23,7.78972262]
[1770151417922,19.97110134,101.31,101.28,1.84810158]
[1770151417923,5.16395997,101.31,101.28,1.84810158]
[1770151418210,0.03304006,101.32,101.26,9.6378242]
[1770151418506,7.78972262,101.31,101.26,9.6378242]
[1770151418805,7.78972262,101.28,101.23,7.78972262]
[1770151419010,7.78972262,101.28,101.24,7.78972262]
[1770151419904,7.78972262,101.27,101.22,7.78972262]
[1770151420701,7.78972262,101.27,101.23,1.68682497]
[1770151421802,7.78972262,101.24,101.21,1.68682497]
[1770151422105,1.68255646,101.27,101.21,1.68682497]
[1770151422320,1.68255646,101.27,101.22,1.68682497]
[1770151422492,7.78972262,101.26,101.22,1.68682497]
[1770151423404,7.78972262,101.25,101.22,1.68682497]
[1770151423798,7.78972262,101.26,101.22,1.68682497]
[1770151423996,7.78972262,101.27,101.22,9.47654759]
[1770151424308,7.78972262,101.26,101.22,1.68682497]
[1770151425113,1.68255646,101.27,101.23,1.68682497]
[1770151425114,7.78972262,101.27,101.23,1.68682497]
[1770151425689,7.78972262,101.26,101.23,1.68682497]
[1770151425906,7.78972262,101.27,101.23,1.68682497]
[1770151426306,7.78972262,101.26,101.23,1.68682497]
[1770151427402,7.78972262,101.27,101.23,1.68682497]
[1770151427903,9.47227908,101.27,101.23,1.68682497]
[1770151428104,7.78972262,101.26,101.23,1.68682497]
[1770151428412,7.78972262,101.26,101.22,1.68682497]
[1770151429608,1.68255646,101.25,101.19,1.68682497]
[1770151429913,7.78972262,101.22,101.19,1.68682497]
[1770151430298,20.7366446,101.27,101.19,1.68682497]
[1770151430299,7.78972262,101.21,101.19,1.68682497]
[1770151430495,7.78972262,101.21,101.17,1.84208989]
[1770151430691,7.78972262,101.2,101.16,1.84208989]
[1770151430891,7.78972262,101.21,101.17,1.84208989]
[1770151431103,1.68500557,101.23,101.18,1.84208989]
[1770151431104,7.78972262,101.22,101.18,1.84208989]
[1770151431495,7.78972262,101.23,101.19,1.84208989]
[1770151431894,9.47472819,101.24,101.2,1.84208989]
[1770151432095,7.78972262,101.24,101.2,1.84208989]
[1770151432499,7.78972262,101.23,101.2,1.84208989]
[1770151433013,9.47472819,101.23,101.18,1.84208989]
[1770151433216,7.78972262,101.21,101.18,1.84208989]
[1770151433410,7.78972262,101.22,101.19,1.84208989]
[1770151433802,7.78972262,101.21,101.17,1.84208989]
[1770151433997,7.78972262,101.22,101.18,1.84208989]
[1770151434419,9.47472819,101.23,101.19,1.84208989]
[1770151434621,1.81363717,101.3,101.23,1.82348454]
[1770151434918,9.60335979,101.3,101.25,9.61320716]
[1770151435219,9.60335979,101.28,101.23,9.61320716]
[1770151435400,7.78972262,101.27,101.23,1.82348454]
[1770151435602,9.60335979,101.28,101.23,1.82348454]
[1770151435803,7.78972262,101.27,101.23,9.61320716]
[1770151436002,9.60335979,101.28,101.23,9.61320716]
[1770151436304,9.60335979,101.29,101.24,9.61320716]
[1770151437225,9.60335979,101.3,101.25,9.61320716]
[1770151437925,1.81363717,101.3,101.26,7.78972262]
[1770151438323,7.73663854,101.3,101.26,7.78972262]
[1770151438929,1.81363717,101.3,101.26,7.78972262]
[1770151439109,9.60335979,101.3,101.25,1.82348454]
[1770151439309,9.60335979,101.3,101.25,9.61320716]
[1770151439846,9.60335979,101.3,101.25,1.82348454]
[1770151440031,9.60335979,101.3,101.25,9.61320716]
[1770151440220,1.81363717,101.3,101.26,7.78972262]
[1770151440423,9.60335979,101.31,101.26,9.61320716]
[1770151440732,15.52588325,101.31,101.26,9.61320716]
[1770151441023,9.60335979,101.31,101.26,9.61320716]
[1770151441230,15.52584566,101.31,101.26,9.61320716]
[1770151441702,15.52583611,101.31,101.26,9.61320716]
[1770151441906,7.78972262,101.3,101.26,1.82348454]
[1770151442107,7.78972262,101.3,101.26,9.61320716]
[1770151442433,9.62032142,101.27,101.22,1.82348454]
[1770151442728,7.80668425,101.25,101.22,1.82348454]
[1770151443108,7.80668425,101.27,101.23,1.82348454]
[1770151443307,9.62032142,101.3,101.25,9.63016879]
[1770151443721,9.62032142,101.3,101.26,7.80668425]
[1770151444034,7.80668425,101.31,101.26,9.63016879]
[1770151445139,7.80668425,101.3,101.26,1.82348454]
[1770151445335,7.80668425,101.3,101.24,9.63016879]
[1770151445336,7.80668425,101.29,101.24,9.63016879]
[1770151445642,7.80668425,101.27,101.24,1.82348454]
[1770151446343,7.80668425,101.25,101.22,1.82348454]
[1770151446630,7.80668425,101.24,101.22,1.82348454]
[1770151447214,7.80668425,101.24,101.2,1.82348454]
[1770151447430,7.80668425,101.22,101.2,1.82348454]
[1770151447730,7.80668425,101.23,101.2,1.82348454]
[1770151448427,7.80668425,101.24,101.2,1.82348454]
[1770151448929,9.62032142,101.25,101.2,9.63016879]
[1770151449331,7.80668425,101.25,101.21,1.82348454]
[1770151449631,7.80668425,101.24,101.2,1.82348454]
[1770151450321,7.80668425,101.22,101.2,1.82348454]
[1770151450523,7.80668425,101.22,101.18,1.82348454]
[1770151450710,7.80668425,101.22,101.19,1.82348454]
[1770151450917,7.80668425,101.23,101.19,1.82348454]
[1770151451115,1.81363717,101.23,101.19,1.82348454]
[1770151451316,7.80668425,101.21,101.19,1.82348454]
[1770151451625,7.80668425,101.22,101.19,1.82348454]
[1770151451828,7.80668425,101.23,101.19,1.82348454]
[1770151452032,7.80668425,101.22,101.19,1.82348454]
[1770151452617,7.80668425,101.2,101.17,1.82348454]
[1770151453821,7.80668425,101.19,101.17,1.82348454]
[1770151454040,7.80668425,101.2,101.17,1.82348454]
[1770151454435,7.80668425,101.18,101.15,1.82348454]
[1770151454634,7.80668425,101.17,101.15,1.82348454]
[1770151454945,7.80668425,101.19,101.15,9.63016879]
[1770151455244,9.62032142,101.2,101.15,9.63016879]
[1770151455540,9.91929315,101.24,101.17,7.80668425]
[1770151455541,11.73293032,101.24,101.17,7.80668425]
[1770151455845,7.80668425,101.21,101.17,9.63016879]
[1770151456136,7.80668425,101.22,101.17,9.63016879]
[1770151456339,7.80668425,101.2,101.17,1.82348454]
[1770151457542,7.80668425,101.18,101.15,1.82348454]
[1770151457941,7.80668425,101.17,101.15,1.82348454]
[1770151458145,1.81363717,101.2,101.13,1.82348454]
[1770151458146,7.80668425,101.16,101.13,1.82348454]
[1770151458347,7.80668425,101.17,101.13,1.82348454]
[1770151458637,7.80668425,101.18,101.14,1.82348454]
[1770151458847,7.80668425,101.17,101.14,1.82348454]
[1770151459031,7.80668425,101.17,101.12,2.02348454]
[1770151459032,9.62014369,101.17,101.12,2.02348454]
[1770151459239,7.80668425,101.14,101.12,0.2]
[1770151459425,7.80668425,101.15,101.12,0.2]
[1770151459949,7.80668425,101.16,101.12,2.02348454]
[1770151460253,7.80668425,101.14,101.12,0.2]
[1770151460546,7.80668425,101.15,101.12,0.2]
[1770151460952,6.68878223,101.18,101.12,1.90975173]
[1770151461147,7.80668425,101.15,101.12,1.90975173]
[1770151461349,7.80668425,101.16,101.12,1.90975173]
[1770151461735,7.80668425,101.15,101.12,1.90975173]
[1770151461930,6.68928012,101.17,101.12,1.90975173]
[1770151461931,7.80668425,101.16,101.12,1.90975173]
[1770151462753,7.80668425,101.15,101.12,1.90975173]
[1770151463051,1.74704748,101.17,101.12,1.90975173]
[1770151463052,7.80668425,101.16,101.12,1.90975173]
[1770151463258,7.80668425,101.15,101.12,1.90975173]
[1770151463955,7.80668425,101.17,101.13,1.70975173]
[1770151464156,7.80668425,101.18,101.13,9.51643598]
[1770151464359,9.55373173,101.18,101.13,9.51643598]
[1770151464654,7.80668425,101.19,101.14,9.51643598]
[1770151464836,1.74704748,101.19,101.15,1.70975173]
[1770151465038,7.80668425,101.19,101.15,1.70975173]
[1770151465454,7.80668425,101.17,101.13,1.70975173]
[1770151465951,7.80668425,101.16,101.13,1.70975173]
[1770151466156,1.74704748,101.18,101.13,9.51643598]
[1770151466355,7.80668425,101.17,101.13,9.51643598]
[1770151466538,7.80668425,101.19,101.14,9.51643598]
[1770151466733,9.55373173,101.19,101.14,9.51643598]
[1770151466945,7.80668425,101.17,101.13,1.70975173]
[1770151467146,1.74704748,101.18,101.13,1.70975173]
[1770151467369,1.74704748,101.2,101.15,1.70975173]
[1770151467534,7.80668425,101.19,101.15,1.70975173]
[1770151467958,7.80668425,101.18,101.15,1.70975173]
[1770151469334,7.80668425,101.18,101.13,1.70975173]
[1770151469335,7.80668425,101.17,101.13,1.70975173]
[1770151469537,9.55373173,101.18,101.13,9.51643598]
[1770151470260,7.80668425,101.17,101.13,9.51643598]
[1770151470557,9.55373173,101.18,101.14,1.70975173]
[1770151471150,9.55373173,101.18,101.12,9.71643598]
[1770151471151,7.80668425,101.17,101.12,9.71643598]
[1770151471343,7.80668425,101.15,101.12,0.2]
[1770151471657,7.80668425,101.15,101.11,1.90975173]
[1770151471658,7.80668425,101.14,101.11,1.90975173]
[1770151473459,9.55373173,101.13,101.09,0.2]
[1770151473758,7.80668425,101.12,101.09,0.2]
[1770151473965,9.55373173,101.13,101.09,0.2]
[1770151474663,7.80668425,101.11,101.09,0.2]
[1770151474838,7.80668425,101.1,101.07,1.70975173]
[1770151476541,7.80668425,101.11,101.07,1.70975173]
[1770151476750,9.39066622,101.12,101.07,9.51643598]
[1770151477236,7.80668425,101.1,101.07,1.70975173]
[1770151477441,1.58398197,101.12,101.07,1.70975173]
[1770151477442,7.80668425,101.11,101.07,1.70975173]
[1770151477939,1.58398197,101.12,101.07,1.70975173]
[1770151478145,9.39066622,101.12,101.07,9.51643598]
[1770151478345,1.5793548,101.09,101.05,44.27111737]
[1770151478551,7.80668425,101.08,101.05,45.9808691]
[1770151478858,7.80668425,101.1,101.06,1.70975173]
[1770151479564,9.38418387,101.1,101.06,1.70975173]
[1770151479946,7.80668425,101.08,101.05,44.27111737]
[1770151480148,7.80668425,101.09,101.05,45.9808691]
[1770151481466,9.38418387,101.1,101.06,1.70975173]
[1770151482159,7.80668425,101.09,101.06,1.70975173]
[1770151483153,7.80668425,101.08,101.06,1.70975173]
[1770151483354,7.80668425,101.08,101.05,44.27111737]
[1770151483355,7.80668425,101.07,101.05,44.27111737]
[1770151483665,7.80668425,101.06,101.04,0.2]
[1770151483857,7.80668425,101.05,101.02,0.2]
[1770151484060,7.80668425,101.04,101.02,0.2]
[1770151485564,7.80668425,101.05,101.02,0.2]
[1770151486071,7.80668425,101.06,101.02,2.01212417]
[1770151486566,7.80668425,101.05,101.02,2.01212417]
[1770151486771,5.93667413,101.07,101.02,2.01212417]
[1770151486968,7.80668425,101.06,101.02,2.01212417]
[1770151487357,19.1136321,101.09,101.02,9.81880842]
[1770151487671,7.80668425,101.05,101.02,2.01212417]
[1770151487861,7.80668425,101.04,101.02,0.2]
[1770151488246,7.80668425,101.04,101.01,1.81212417]
[1770151488555,7.80668425,101.03,100.99,1.81212417]
[1770151488944,5.36086188,101.08,101.0,1.81212417]
[1770151489145,7.80668425,101.04,101.0,1.81212417]
[1770151489361,7.80668425,101.02,100.98,1.81212417]
[1770151489663,7.80668425,101.0,100.98,1.81212417]
[1770151489849,4.27527085,101.03,100.98,1.81212417]
[1770151490049,7.80668425,101.01,100.98,1.81212417]
[1770151491065,7.80668425,101.03,100.99,1.81212417]
[1770151491268,7.80668425,101.05,101.01,1.81212417]
[1770151491476,7.80668425,101.05,101.01,9.61880842]
[1770151491852,7.80668425,101.05,101.01,1.81212417]
[1770151493165,0.0236389,101.06,101.01,1.81212417]
[1770151493166,7.80668425,101.04,101.01,1.81212417]
[1770151493467,7.80668425,101.04,100.99,9.61880842]
[1770151493650,7.80668425,101.03,100.99,1.81212417]
[1770151493977,7.80668425,101.05,101.01,1.81212417]
[1770151494168,7.80668425,101.06,101.02,1.81212417]
[1770151494348,0.03333538,101.06,101.0,1.81212417]
[1770151494555,7.80668425,101.05,101.01,9.61880842]
[1770151494854,0.03333538,101.06,101.01,9.61880842]
[1770151494855,7.80668425,101.06,101.02,1.81212417]
[1770151495053,7.80668425,101.05,101.02,1.81212417]
[1770151495362,7.80668425,101.04,101.0,1.81212417]
[1770151495568,7.80668425,101.03,101.0,1.81212417]
[1770151496665,7.80668425,101.04,101.0,1.81212417]
[1770151497570,13.78252244,101.05,101.0,9.61880842]
[1770151497755,7.85875324,101.07,101.02,9.61880842]
[1770151497956,13.79562054,101.07,101.02,9.61880842]
[1770151498158,0.05206899,101.07,101.02,9.61880842]
[1770151498466,13.79530957,101.07,101.02,9.61880842]
[1770151499686,7.85875324,101.07,101.02,9.61880842]
[1770151499975,0.05206899,101.07,101.03,7.80668425]
[1770151500186,13.79526065,101.07,101.02,9.61880842]
[1770151500358,7.80668425,101.06,101.02,1.81212417]
[1770151501269,7.80668425,101.06,101.02,9.61880842]
[1770151501476,45.65542588,101.1,101.04,1.81212417]
[1770151501477,9.98924978,101.1,101.04,1.81212417]
[1770151501648,0.06995663,101.09,101.05,9.61880842]
[1770151502277,7.87664088,101.07,101.02,9.61880842]
[1770151502454,7.91143083,101.06,101.01,9.64925413]
[1770151502772,7.91143083,101.05,101.01,1.81212417]
[1770151503288,7.91143083,101.05,100.97,37.62342413]
[1770151503289,7.83712996,101.03,100.99,1.81212417]
[1770151503580,7.83712996,101.02,100.99,1.81212417]
[1770151503788,7.91572517,101.02,100.98,1.81212417]
[1770151503953,13.85520895,101.02,100.98,1.81212417]
[1770151504154,0.07859521,101.02,100.98,9.64925413]
[1770151504456,13.85515331,101.02,100.97,9.84925413]
[1770151504656,7.91572517,101.02,100.97,9.84925413]
[1770151505067,13.8551762,101.02,100.97,9.84925413]
[1770151505271,7.83712996,101.01,100.97,2.01212417]
[1770151505649,13.8551762,101.02,100.97,9.84925413]
[1770151506073,7.91572517,101.02,100.97,9.84925413]
[1770151506256,13.85515392,101.02,100.97,9.84925413]
[1770151506456,0.07859521,101.02,100.98,9.64925413]
[1770151507061,7.83712996,101.01,100.98,1.81212417]
[1770151507578,13.85519333,101.02,100.98,1.81212417]
[1770151508365,7.83712996,101.01,100.98,1.81212417]
[1770151508759,6.01806337,101.02,100.97,0.2]
[1770151508760,0.09933828,101.0,100.97,0.2]
[1770151508975,7.83712996,101.0,100.97,0.10066172]
[1770151509178,5.17821183,101.01,100.96,0.2]
[1770151509359,5.17821183,101.01,100.96,2.06179331]
[1770151509565,9.84020154,101.07,100.99,9.69892327]
[1770151509761,7.83712996,101.04,100.99,9.69892327]
[1770151510081,13.77419704,101.06,101.01,9.69892327]
[1770151510281,5.93678867,101.07,101.02,7.83712996]
[1770151510469,18.94929579,101.07,101.02,7.83712996]
[1770151510670,5.17537716,101.07,101.03,7.83712996]
[1770151510881,5.17537716,101.07,101.02,9.69892327]
[1770151510882,13.01250712,101.07,101.02,9.69892327]
[1770151511061,5.17537716,101.07,101.03,7.83712996]
[1770151511262,5.36086188,101.1,101.05,7.83712996]
[1770151511486,7.83712996,101.11,101.06,7.83712996]
[1770151511669,13.01091696,101.12,101.07,7.83712996]
[1770151511861,18.9446414,101.12,101.07,7.83712996]
[1770151512183,13.77159564,101.11,101.05,1.86179331]
[1770151512391,7.83712996,101.1,101.05,9.69892327]
[1770151512583,7.83712996,101.09,101.04,9.69892327]
[1770151512891,7.83712996,101.08,101.03,9.69892327]
[1770151513064,7.83712996,101.08,101.04,1.86179331]
[1770151513263,7.83712996,101.09,101.04,9.69892327]
[1770151513588,7.83712996,101.08,101.04,1.86179331]
[1770151513775,7.83712996,101.09,101.04,9.69892327]
[1770151513973,4.27527085,101.11,101.06,9.69892327]
[1770151514280,13.01091696,101.12,101.07,7.83712996]
[1770151514467,5.173787,101.12,101.08,7.83712996]
[1770151514666,5.173787,101.12,101.07,1.86179331]
[1770151514667,7.85873809,101.12,101.07,9.69892327]
[1770151515584,7.86074407,101.08,101.02,1.86179331]
[1770151515787,7.83712996,101.07,101.03,1.86179331]
[1770151516090,7.83712996,101.06,101.02,1.86179331]
[1770151516386,7.83712996,101.07,101.03,1.86179331]
[1770151517769,0.02559705,101.08,101.03,9.69892327]
[1770151517965,13.79877202,101.08,101.03,9.69892327]
[1770151518192,7.83712996,101.07,101.03,1.86179331]
[1770151518691,7.83712996,101.06,101.01,1.86179331]
[1770151518992,7.83712996,101.05,101.01,1.86179331]
[1770151520291,0.03141025,101.04,100.99,9.69892327]
[1770151520493,0.03141025,101.03,100.98,1.86179331]
[1770151520691,7.83712996,101.01,100.98,1.86179331]
[1770151520890,4.31044613,101.01,100.96,2.06179331]
[1770151521093,7.83712996,100.99,100.96,2.06179331]
[1770151521295,7.83712996,100.98,100.96,2.06179331]
[1770151521498,7.83712996,100.97,100.94,1.86179331]
[1770151521799,7.83712996,100.95,100.92,1.86179331]
[1770151522471,10.2547345,100.97,100.92,1.86179331]
[1770151522682,7.83712996,100.95,100.91,0.10908423]
[1770151522886,7.83712996,100.95,100.91,1.97087754]
[1770151523087,7.87598428,100.98,100.93,1.86179331]